[Event "2026 European Womens Championship"]
[Site "Batumi, GE"]
[Date "2026.06.04"]
[Round "10"]
[White "Mammadova, Gulnar"]
[Black "Siekanska, Maria"]
[Result "1-0"]
[Board "28"]
[TimeControl "5400+30"]
[WhiteFideId "13403508"]
[BlackFideId "21852650"]
[WhiteElo "2325"]
[BlackElo "2203"]
[WhiteTitle "IM"]
[BlackTitle "WIM"]
[WhiteClock "0:14:02"]
[BlackClock "0:09:04"]
[Variant "Standard"]

1. e4 {[%clk 1:30:51]}  c5 {[%clk 1:30:56]} 2. Nc3 {[%clk 1:31:11]}  Nc6 {[%clk 1:31:22]} 3. Bb5 {[%clk 1:31:31]}  Nd4 {[%clk 1:31:46]}
4. a4 {[%clk 1:31:52]}  g6 {[%clk 1:32:01]} 5. d3 {[%clk 1:31:47]}  Bg7 {[%clk 1:32:24]} 6. Nf3 {[%clk 1:31:45]}  a6 {[%clk 1:30:59]}
7. Bc4 {[%clk 1:32:10]}  e6 {[%clk 1:31:13]} 8. Nxd4 {[%clk 1:30:58]}  cxd4 {[%clk 1:30:31]} 9. Ne2 {[%clk 1:31:20]}  Ne7 {[%clk 1:30:37]}
10. O-O {[%clk 1:31:45]}  d5 {[%clk 1:27:09]} 11. Bb3 {[%clk 1:31:57]}  O-O {[%clk 1:21:17]} 12. f4 {[%clk 1:31:08]}  Qb6 {[%clk 1:10:47]}
13. Kh1 {[%clk 1:26:07]}  Bd7 {[%clk 1:09:00]} 14. a5 {[%clk 1:23:40]}  Qc5 {[%clk 1:05:11]} 15. c3 {[%clk 1:10:56]}  Nc6 {[%clk 0:55:09]}
16. e5 {[%clk 1:03:43]}  f6 {[%clk 0:46:14]} 17. cxd4 {[%clk 0:52:17]}  Qb4 {[%clk 0:29:32]} 18. Bd2 {[%clk 0:48:55]}  Qe7 {[%clk 0:27:33]}
19. Bc3 {[%clk 0:46:45]}  g5 {[%clk 0:23:46]} 20. Ba4 {[%clk 0:39:46]}  gxf4 {[%clk 0:22:58]} 21. Bxc6 {[%clk 0:36:55]}  Bxc6 {[%clk 0:23:16]}
22. exf6 {[%clk 0:31:44]}  Rxf6 {[%clk 0:22:38]} 23. Rxf4 {[%clk 0:31:20]}  Raf8 {[%clk 0:22:56]} 24. Rxf6 {[%clk 0:31:34]}  Rxf6 {[%clk 0:21:22]}
25. Ng3 {[%clk 0:31:06]}  Rh6 {[%clk 0:17:25]} 26. Qg4 {[%clk 0:29:32]}  Rh4 {[%clk 0:16:19]} 27. Qf3 {[%clk 0:28:30]}  Be8 {[%clk 0:14:11]}
28. Re1 {[%clk 0:26:43]}  Qd6 {[%clk 0:12:10]} 29. h3 {[%clk 0:25:29]}  Rf4 {[%clk 0:11:42]} 30. Qe2 {[%clk 0:24:08]}  Rf6 {[%clk 0:09:55]}
31. Rf1 {[%clk 0:17:50]}  Rxf1+ {[%clk 0:04:25]} 32. Nxf1 {[%clk 0:18:17]}  Kh8 {[%clk 0:04:44]} 33. Nd2 {[%clk 0:17:35]}  Bg6 {[%clk 0:02:56]}
34. Nf3 {[%clk 0:17:52]}  Bf5 {[%clk 0:02:01]} 35. g4 {[%clk 0:14:25]}  Bg6 {[%clk 0:02:08]} 36. Ng5 {[%clk 0:11:00]}  Qf4 {[%clk 0:00:44]}
37. Nxe6 {[%clk 0:08:55]}  Qg3 {[%clk 0:00:55]} 38. Ng5 {[%clk 0:04:05]}  h6 {[%clk 0:00:59]} 39. Be1 {[%clk 0:02:28]}  Qxd3 {[%clk 0:00:37]}
40. Qxd3 {[%clk 0:02:54]}  Bxd3 {[%clk 0:01:03]} 41. Ne6 {[%clk 0:03:21]}  Be4+ {[%clk 0:29:09]} 42. Kh2 {[%clk 0:29:05]}  Bf6 {[%clk 0:28:28]}
43. Nc5 {[%clk 0:25:16]}  Bg5 {[%clk 0:20:33]} 44. Kg3 {[%clk 0:23:10]}  Bc1 {[%clk 0:17:25]} 45. Bc3 {[%clk 0:23:24]}  Kg7 {[%clk 0:17:19]}
46. b4 {[%clk 0:20:21]}  Bg6 {[%clk 0:15:21]} 47. Nxb7 {[%clk 0:15:29]}  Bd3 {[%clk 0:14:42]} 48. Nd6 {[%clk 0:14:58]}  Ba3 {[%clk 0:14:08]}
49. Nf5+ {[%clk 0:13:43]}  Kg6 {[%clk 0:09:19]} 50. Ne7+ {[%clk 0:13:42]}  Kf7 {[%clk 0:09:44]} 51. Nxd5 {[%clk 0:14:04]}  Bf1 {[%clk 0:09:38]}
52. Ne3 {[%clk 0:14:08]}  Bd3 {[%clk 0:09:57]} 53. Nf5 {[%clk 0:13:55]}  h5 {[%clk 0:09:50]} 54. d5 {[%clk 0:13:08]}  hxg4 {[%clk 0:10:07]}
55. hxg4 {[%clk 0:13:35]}  Bc1 {[%clk 0:10:02]} 56. Kf3 {[%clk 0:13:29]}  Bg5 {[%clk 0:09:41]} 57. Nd6+ {[%clk 0:13:36]}  Ke7 {[%clk 0:09:47]}
58. Ne4 {[%clk 0:13:59]}  Bc1 {[%clk 0:09:46]} 59. d6+ {[%clk 0:13:42]}  Kf7 {[%clk 0:09:04]} 60. d7 {[%clk 0:14:02]} 1-0

[Event "2026 European Womens Championship"]
[Site "Batumi, GE"]
[Date "2026.06.04"]
[Round "10"]
[White "Gvetadze, Sofio"]
[Black "Chernyak, Viktoria"]
[Result "1-0"]
[Board "29"]
[TimeControl "5400+30"]
[WhiteFideId "13601440"]
[BlackFideId "24165956"]
[WhiteElo "2311"]
[BlackElo "2191"]
[WhiteTitle "IM"]
[BlackTitle "WGM"]
[WhiteClock "0:18:33"]
[BlackClock "0:27:19"]
[Variant "Standard"]

1. e4 {[%clk 1:30:57]}  c6 {[%clk 1:30:57]} 2. d4 {[%clk 1:31:19]}  d5 {[%clk 1:31:23]} 3. Nc3 {[%clk 1:31:42]}  dxe4 {[%clk 1:31:48]}
4. Nxe4 {[%clk 1:32:09]}  Bf5 {[%clk 1:32:13]} 5. Ng3 {[%clk 1:32:25]}  Bg6 {[%clk 1:32:41]} 6. Bc4 {[%clk 1:32:15]}  e6 {[%clk 1:32:06]}
7. N1e2 {[%clk 1:32:18]}  Nf6 {[%clk 1:30:37]} 8. O-O {[%clk 1:30:18]}  Bd6 {[%clk 1:28:40]} 9. Nf4 {[%clk 1:23:02]}  Qc7 {[%clk 1:26:42]}
10. Nxg6 {[%clk 1:18:49]}  hxg6 {[%clk 1:27:03]} 11. Re1 {[%clk 1:19:07]}  Nbd7 {[%clk 1:26:36]} 12. Bg5 {[%clk 1:14:29]}  O-O-O {[%clk 1:20:40]}
13. Qf3 {[%clk 1:13:50]}  Qa5 {[%clk 1:11:33]} 14. Bf4 {[%clk 1:11:55]}  Bxf4 {[%clk 1:11:02]} 15. Qxf4 {[%clk 1:12:20]}  g5 {[%clk 1:10:56]}
16. Qf3 {[%clk 1:07:34]}  Rh4 {[%clk 1:01:08]} 17. c3 {[%clk 1:06:45]}  Rdh8 {[%clk 0:58:14]} 18. Nf1 {[%clk 0:48:35]}  Qc7 {[%clk 0:43:16]}
19. g3 {[%clk 0:39:13]}  R4h5 {[%clk 0:40:24]} 20. a4 {[%clk 0:38:15]}  g4 {[%clk 0:37:26]} 21. Qe2 {[%clk 0:36:54]}  Kb8 {[%clk 0:25:39]}
22. b4 {[%clk 0:36:09]}  Nh7 {[%clk 0:20:00]} 23. Qxg4 {[%clk 0:33:30]}  Ng5 {[%clk 0:19:45]} 24. f4 {[%clk 0:18:30]}  Nf6 {[%clk 0:19:11]}
25. Qe2 {[%clk 0:17:13]}  Nh3+ {[%clk 0:19:31]} 26. Kh1 {[%clk 0:07:54]}  Ne4 {[%clk 0:13:25]} 27. Qf3 {[%clk 0:06:58]}  Nd6 {[%clk 0:12:01]}
28. Bd3 {[%clk 0:06:46]}  g5 {[%clk 0:11:55]} 29. Re5 {[%clk 0:05:11]}  g4 {[%clk 0:11:15]} 30. Qe2 {[%clk 0:04:52]}  c5 {[%clk 0:10:26]}
31. d5 {[%clk 0:01:35]}  cxb4 {[%clk 0:08:45]} 32. c4 {[%clk 0:01:18]}  exd5 {[%clk 0:09:05]} 33. cxd5 {[%clk 0:01:24]}  Qc3 {[%clk 0:08:27]}
34. Ra2 {[%clk 0:01:28]}  a5 {[%clk 0:07:49]} 35. Rc2 {[%clk 0:01:07]}  Qd4 {[%clk 0:08:09]} 36. Qe3 {[%clk 0:01:24]}  Qxe3 {[%clk 0:02:42]}
37. Nxe3 {[%clk 0:01:52]}  f6 {[%clk 0:03:06]} 38. Re6 {[%clk 0:01:21]}  b3 {[%clk 0:03:09]} 39. Rb2 {[%clk 0:01:19]}  Kc7 {[%clk 0:02:10]}
40. Bf1 {[%clk 0:01:09]}  b5 {[%clk 0:02:08]} 41. Rxb3 {[%clk 0:23:03]}  Nf2+ {[%clk 0:27:33]} 42. Kg1 {[%clk 0:23:17]}  Rxh2 {[%clk 0:27:54]}
43. Bg2 {[%clk 0:22:29]}  Nde4 {[%clk 0:25:58]} 44. Bxe4 {[%clk 0:20:36]}  Nxe4 {[%clk 0:26:21]} 45. Rxe4 {[%clk 0:20:39]}  Rh1+ {[%clk 0:26:46]}
46. Kf2 {[%clk 0:21:03]}  R8h2+ {[%clk 0:27:13]} 47. Ng2 {[%clk 0:21:24]}  Ra1 {[%clk 0:27:06]} 48. Rb2 {[%clk 0:20:47]}  bxa4 {[%clk 0:27:18]}
49. Rd2 {[%clk 0:20:42]}  a3 {[%clk 0:26:59]} 50. d6+ {[%clk 0:20:45]}  Kd7 {[%clk 0:26:57]} 51. Re7+ {[%clk 0:18:37]}  Kd8 {[%clk 0:27:26]}
52. Ra7 {[%clk 0:18:17]}  a2 {[%clk 0:27:13]} 53. Rxa5 {[%clk 0:18:36]}  Rhh1 {[%clk 0:27:19]} 54. Raxa2 {[%clk 0:18:33]} 1-0

[Event "2026 European Womens Championship"]
[Site "Batumi, GE"]
[Date "2026.06.04"]
[Round "10"]
[White "Pogorelskikh, Sofia"]
[Black "Peycheva, Gergana"]
[Result "1/2-1/2"]
[Board "30"]
[TimeControl "5400+30"]
[WhiteFideId "44164548"]
[BlackFideId "2916711"]
[WhiteElo "2284"]
[BlackElo "2186"]
[WhiteTitle "WGM"]
[BlackTitle "FM"]
[WhiteClock "0:05:18"]
[BlackClock "0:04:55"]
[Variant "Standard"]

1. e4 {[%clk 1:30:47]}  c6 {[%clk 1:30:33]} 2. d4 {[%clk 1:31:03]}  d5 {[%clk 1:30:45]} 3. e5 {[%clk 1:31:20]}  c5 {[%clk 1:29:33]}
4. Nf3 {[%clk 1:30:27]}  Nc6 {[%clk 1:23:10]} 5. dxc5 {[%clk 1:30:18]}  e6 {[%clk 1:21:44]} 6. a3 {[%clk 1:29:17]}  Bxc5 {[%clk 1:19:38]}
7. b4 {[%clk 1:28:57]}  Bb6 {[%clk 1:18:54]} 8. Bb2 {[%clk 1:24:21]}  Nge7 {[%clk 1:17:29]} 9. Nbd2 {[%clk 1:19:52]}  Ng6 {[%clk 1:11:06]}
10. h4 {[%clk 1:12:27]}  d4 {[%clk 0:57:47]} 11. Bb5 {[%clk 1:05:43]}  Bd7 {[%clk 0:48:59]} 12. Qe2 {[%clk 1:01:18]}  a6 {[%clk 0:47:19]}
13. Bd3 {[%clk 0:58:19]}  Nf4 {[%clk 0:44:21]} 14. Qe4 {[%clk 0:54:18]}  Nxd3+ {[%clk 0:44:43]} 15. cxd3 {[%clk 0:48:15]}  O-O {[%clk 0:37:53]}
16. Ng5 {[%clk 0:45:05]}  g6 {[%clk 0:38:18]} 17. O-O {[%clk 0:43:44]}  f5 {[%clk 0:33:00]} 18. exf6 {[%clk 0:42:22]}  Qxf6 {[%clk 0:33:24]}
19. Qe2 {[%clk 0:36:58]}  e5 {[%clk 0:28:05]} 20. Nde4 {[%clk 0:32:41]}  Qe7 {[%clk 0:27:34]} 21. Bc1 {[%clk 0:23:22]}  Rae8 {[%clk 0:23:32]}
22. Ng3 {[%clk 0:14:07]}  Nd8 {[%clk 0:20:22]} 23. a4 {[%clk 0:12:39]}  Nc6 {[%clk 0:16:29]} 24. N5e4 {[%clk 0:11:57]}  Nxb4 {[%clk 0:12:59]}
25. Bg5 {[%clk 0:11:11]}  Qe6 {[%clk 0:12:06]} 26. Bh6 {[%clk 0:10:36]}  Rf5 {[%clk 0:08:18]} 27. Bd2 {[%clk 0:07:05]}  Nd5 {[%clk 0:07:46]}
28. Ng5 {[%clk 0:06:16]}  Qd6 {[%clk 0:05:57]} 29. Nxf5 {[%clk 0:05:37]}  gxf5 {[%clk 0:06:18]} 30. Qh5 {[%clk 0:05:10]}  Qg6 {[%clk 0:06:04]}
31. Qxg6+ {[%clk 0:05:08]}  hxg6 {[%clk 0:06:30]} 32. Rfe1 {[%clk 0:04:41]}  Bd8 {[%clk 0:06:34]} 33. f3 {[%clk 0:02:48]}  Bf6 {[%clk 0:03:24]}
34. g3 {[%clk 0:01:34]}  b5 {[%clk 0:02:45]} 35. axb5 {[%clk 0:01:51]}  Bxb5 {[%clk 0:03:07]} 36. Ra3 {[%clk 0:01:36]}  Rc8 {[%clk 0:02:19]}
37. Ne6 {[%clk 0:01:19]}  Rc6 {[%clk 0:01:54]} 38. Ng5 {[%clk 0:01:42]}  Rc2 {[%clk 0:02:18]} 39. Rd1 {[%clk 0:01:27]}  Be7 {[%clk 0:01:14]}
40. Rb3 {[%clk 0:01:17]}  Bc5 {[%clk 0:00:43]} 41. Rc1 {[%clk 0:25:29]}  Rxd2 {[%clk 0:17:23]} 42. Rxc5 {[%clk 0:25:25]}  Nc3 {[%clk 0:17:45]}
43. Rxe5 {[%clk 0:16:44]}  Ne2+ {[%clk 0:17:21]} 44. Kf1 {[%clk 0:16:03]}  Nc1 {[%clk 0:07:16]} 45. Rbxb5 {[%clk 0:15:18]}  axb5 {[%clk 0:07:43]}
46. Rxb5 {[%clk 0:13:44]}  Rxd3 {[%clk 0:07:15]} 47. Rd5 {[%clk 0:11:30]}  Rd1+ {[%clk 0:06:30]} 48. Kf2 {[%clk 0:11:13]}  d3 {[%clk 0:06:27]}
49. Rd8+ {[%clk 0:07:46]}  Kg7 {[%clk 0:06:52]} 50. Rd7+ {[%clk 0:07:50]}  Kg8 {[%clk 0:05:44]} 51. f4 {[%clk 0:04:53]}  Nb3 {[%clk 0:04:22]}
52. Rd8+ {[%clk 0:04:48]}  Kg7 {[%clk 0:04:47]} 53. Rd7+ {[%clk 0:05:09]}  Kg8 {[%clk 0:04:55]} 54. Rd8+ {[%clk 0:05:18]} 1/2-1/2

[Event "2026 European Womens Championship"]
[Site "Batumi, GE"]
[Date "2026.06.04"]
[Round "10"]
[White "Odisharia, Teona"]
[Black "Schneider, Jana"]
[Result "0-1"]
[Board "31"]
[TimeControl "5400+30"]
[WhiteFideId "13602322"]
[BlackFideId "12924997"]
[WhiteElo "2167"]
[BlackElo "2283"]
[WhiteTitle "WFM"]
[BlackTitle "WGM"]
[WhiteClock "0:11:06"]
[BlackClock "0:11:00"]
[Variant "Standard"]

1. e4 {[%clk 1:30:43]}  e5 {[%clk 1:30:51]} 2. Nf3 {[%clk 1:31:02]}  Nc6 {[%clk 1:31:12]} 3. d4 {[%clk 1:30:49]}  exd4 {[%clk 1:31:34]}
4. Nxd4 {[%clk 1:31:14]}  Bc5 {[%clk 1:31:55]} 5. Nb3 {[%clk 1:31:12]}  Bb6 {[%clk 1:32:12]} 6. Qe2 {[%clk 1:31:23]}  d6 {[%clk 1:30:38]}
7. Be3 {[%clk 1:31:30]}  Qf6 {[%clk 1:25:40]} 8. Nc3 {[%clk 1:31:11]}  Nge7 {[%clk 1:25:50]} 9. Qd2 {[%clk 1:30:32]}  Bd7 {[%clk 1:21:02]}
10. Bb5 {[%clk 1:27:17]}  Bxe3 {[%clk 1:07:15]} 11. Qxe3 {[%clk 1:26:18]}  O-O-O {[%clk 1:06:09]} 12. O-O {[%clk 1:24:55]}  Kb8 {[%clk 1:04:42]}
13. a4 {[%clk 1:09:43]}  Rhe8 {[%clk 1:01:40]} 14. Qd2 {[%clk 0:59:10]}  Qg6 {[%clk 0:57:55]} 15. f3 {[%clk 0:58:14]}  f5 {[%clk 0:56:02]}
16. Nd4 {[%clk 0:49:23]}  fxe4 {[%clk 0:53:38]} 17. Bxc6 {[%clk 0:44:46]}  Nxc6 {[%clk 0:41:24]} 18. Nxe4 {[%clk 0:36:13]}  Nxd4 {[%clk 0:31:56]}
19. Qxd4 {[%clk 0:36:33]}  Bc6 {[%clk 0:32:04]} 20. Ng3 {[%clk 0:33:55]}  Qxc2 {[%clk 0:29:07]} 21. b4 {[%clk 0:16:45]}  Re5 {[%clk 0:26:01]}
22. Rfc1 {[%clk 0:14:28]}  Qb3 {[%clk 0:24:53]} 23. b5 {[%clk 0:14:12]}  Bd5 {[%clk 0:23:26]} 24. Rc3 {[%clk 0:12:37]}  Qb2 {[%clk 0:23:25]}
25. Rac1 {[%clk 0:12:59]}  Rde8 {[%clk 0:19:41]} 26. Ne4 {[%clk 0:12:58]}  Bxe4 {[%clk 0:18:13]} 27. fxe4 {[%clk 0:13:23]}  Rxe4 {[%clk 0:18:14]}
28. Qf2 {[%clk 0:09:42]}  Qxc3 {[%clk 0:11:43]} 29. Rxc3 {[%clk 0:09:50]}  Re1+ {[%clk 0:12:07]} 30. Qxe1 {[%clk 0:10:17]}  Rxe1+ {[%clk 0:12:32]}
31. Kf2 {[%clk 0:10:44]}  Re6 {[%clk 0:11:31]} 32. Rg3 {[%clk 0:10:46]}  Re7 {[%clk 0:11:37]} 33. Rf3 {[%clk 0:11:06]}  c6 {[%clk 0:11:00]} 0-1

[Event "2026 European Womens Championship"]
[Site "Batumi, GE"]
[Date "2026.06.04"]
[Round "10"]
[White "Radeva, Viktoria"]
[Black "Dwilewicz, Katarzyna"]
[Result "1/2-1/2"]
[Board "32"]
[TimeControl "5400+30"]
[WhiteFideId "2915405"]
[BlackFideId "1148486"]
[WhiteElo "2242"]
[BlackElo "2131"]
[WhiteTitle "WGM"]
[BlackTitle "WIM"]
[WhiteClock "0:18:11"]
[BlackClock "0:19:24"]
[Variant "Standard"]

1. e4 {[%clk 1:30:58]}  e5 {[%clk 1:30:42]} 2. Nf3 {[%clk 1:31:18]}  Nc6 {[%clk 1:31:06]} 3. Bc4 {[%clk 1:31:43]}  Nf6 {[%clk 1:31:23]}
4. d3 {[%clk 1:31:27]}  Be7 {[%clk 1:31:37]} 5. O-O {[%clk 1:31:38]}  O-O {[%clk 1:31:47]} 6. Re1 {[%clk 1:31:55]}  d6 {[%clk 1:31:46]}
7. a3 {[%clk 1:32:17]}  Kh8 {[%clk 1:29:21]} 8. b4 {[%clk 1:24:09]}  Bg4 {[%clk 1:25:09]} 9. h3 {[%clk 1:21:45]}  Bh5 {[%clk 1:24:34]}
10. c3 {[%clk 1:19:15]}  a6 {[%clk 1:12:20]} 11. Nbd2 {[%clk 1:07:45]}  d5 {[%clk 1:03:29]} 12. Bb3 {[%clk 1:01:54]}  dxe4 {[%clk 0:57:17]}
13. dxe4 {[%clk 1:00:02]}  Qd3 {[%clk 0:46:45]} 14. Qc2 {[%clk 0:48:59]}  Rad8 {[%clk 0:42:59]} 15. Bb2 {[%clk 0:46:57]}  Qxc2 {[%clk 0:40:43]}
16. Bxc2 {[%clk 0:46:23]}  Nd7 {[%clk 0:41:07]} 17. g4 {[%clk 0:44:36]}  Bg6 {[%clk 0:39:42]} 18. a4 {[%clk 0:34:48]}  Rfe8 {[%clk 0:33:57]}
19. Nc4 {[%clk 0:29:35]}  f6 {[%clk 0:31:03]} 20. Ne3 {[%clk 0:27:00]}  Nf8 {[%clk 0:22:43]} 21. Nh4 {[%clk 0:22:37]}  Bf7 {[%clk 0:21:19]}
22. Nhf5 {[%clk 0:22:50]}  Ne6 {[%clk 0:20:46]} 23. Nd5 {[%clk 0:13:32]}  Bf8 {[%clk 0:19:45]} 24. Red1 {[%clk 0:12:20]}  a5 {[%clk 0:13:44]}
25. b5 {[%clk 0:10:33]}  Nb8 {[%clk 0:13:51]} 26. Kh2 {[%clk 0:02:25]}  Bc5 {[%clk 0:12:20]} 27. Nde3 {[%clk 0:02:15]}  Nf4 {[%clk 0:12:04]}
28. Rxd8 {[%clk 0:01:40]}  Rxd8 {[%clk 0:12:33]} 29. Rd1 {[%clk 0:02:00]}  Rxd1 {[%clk 0:12:16]} 30. Nxd1 {[%clk 0:02:25]}  Nd7 {[%clk 0:11:03]}
31. Bc1 {[%clk 0:02:21]}  Ne2 {[%clk 0:06:01]} 32. Bd2 {[%clk 0:01:55]}  g6 {[%clk 0:05:48]} 33. Ng3 {[%clk 0:02:04]}  Nxg3 {[%clk 0:04:08]}
34. Kxg3 {[%clk 0:02:27]}  Kg7 {[%clk 0:03:53]} 35. Nb2 {[%clk 0:01:15]}  Ba3 {[%clk 0:03:04]} 36. Nd3 {[%clk 0:01:01]}  Nb6 {[%clk 0:02:01]}
37. Be3 {[%clk 0:01:21]}  Nc4 {[%clk 0:02:19]} 38. Kf3 {[%clk 0:00:36]}  Nxe3 {[%clk 0:02:03]} 39. Kxe3 {[%clk 0:00:59]}  Bc4 {[%clk 0:02:19]}
40. Bd1 {[%clk 0:00:34]}  Kf7 {[%clk 0:01:23]} 41. Kd2 {[%clk 0:23:16]}  Ke6 {[%clk 0:27:11]} 42. Kc2 {[%clk 0:18:37]}  Bxd3+ {[%clk 0:19:26]}
43. Kd2 {[%clk 0:18:16]}  Bc4 {[%clk 0:19:24]} 44. Kc2 {[%clk 0:18:11]} 1/2-1/2

[Event "2026 European Womens Championship"]
[Site "Batumi, GE"]
[Date "2026.06.04"]
[Round "10"]
[White "Khachatryan, Anna"]
[Black "Purtseladze, Maka"]
[Result "1/2-1/2"]
[Board "33"]
[TimeControl "5400+30"]
[WhiteFideId "13310780"]
[BlackFideId "13602659"]
[WhiteElo "2154"]
[BlackElo "2237"]
[WhiteTitle "WFM"]
[BlackTitle "IM"]
[WhiteClock "0:09:01"]
[BlackClock "0:53:10"]
[Variant "Standard"]

1. c4 {[%clk 1:30:29]}  e6 {[%clk 1:30:45]} 2. Nf3 {[%clk 1:30:36]}  Nf6 {[%clk 1:31:06]} 3. g3 {[%clk 1:30:43]}  d5 {[%clk 1:31:16]}
4. d4 {[%clk 1:30:35]}  dxc4 {[%clk 1:31:31]} 5. Bg2 {[%clk 1:29:14]}  Bd7 {[%clk 1:31:50]} 6. O-O {[%clk 1:27:13]}  Bc6 {[%clk 1:30:01]}
7. Qc2 {[%clk 1:26:44]}  Nbd7 {[%clk 1:20:50]} 8. Qxc4 {[%clk 1:26:06]}  Nb6 {[%clk 1:21:17]} 9. Qc2 {[%clk 1:22:38]}  Be4 {[%clk 1:21:42]}
10. Qb3 {[%clk 1:22:51]}  a5 {[%clk 1:13:04]} 11. Nc3 {[%clk 1:18:43]}  a4 {[%clk 1:13:30]} 12. Qd1 {[%clk 1:18:52]}  Bc6 {[%clk 1:13:56]}
13. Qd3 {[%clk 1:13:21]}  Bb4 {[%clk 1:14:09]} 14. Bg5 {[%clk 1:08:25]}  a3 {[%clk 1:09:58]} 15. b3 {[%clk 0:59:45]}  O-O {[%clk 1:06:21]}
16. Rfc1 {[%clk 0:49:48]}  h6 {[%clk 0:57:58]} 17. Bxf6 {[%clk 0:45:11]}  Qxf6 {[%clk 0:58:22]} 18. e4 {[%clk 0:45:03]}  Rfd8 {[%clk 0:58:40]}
19. Qe3 {[%clk 0:41:54]}  Be8 {[%clk 0:58:58]} 20. Ne2 {[%clk 0:39:37]}  Rac8 {[%clk 0:58:57]} 21. Rab1 {[%clk 0:25:38]}  Qe7 {[%clk 0:58:29]}
22. Nf4 {[%clk 0:15:59]}  c5 {[%clk 0:50:05]} 23. Nd3 {[%clk 0:16:17]}  cxd4 {[%clk 0:50:08]} 24. Nxd4 {[%clk 0:16:43]}  Rxc1+ {[%clk 0:47:11]}
25. Rxc1 {[%clk 0:16:55]}  Bd2 {[%clk 0:46:16]} 26. Qxd2 {[%clk 0:16:48]}  Rxd4 {[%clk 0:46:43]} 27. Qe3 {[%clk 0:12:43]}  Qd8 {[%clk 0:45:48]}
28. Bf1 {[%clk 0:12:27]}  Bc6 {[%clk 0:36:21]} 29. f3 {[%clk 0:10:03]}  Nc8 {[%clk 0:36:37]} 30. Ne5 {[%clk 0:04:45]}  Ne7 {[%clk 0:37:04]}
31. Nc4 {[%clk 0:03:44]}  Bb5 {[%clk 0:35:18]} 32. Nxa3 {[%clk 0:03:33]}  Bxf1 {[%clk 0:35:42]} 33. Rxf1 {[%clk 0:03:31]}  Rd3 {[%clk 0:35:22]}
34. Qc5 {[%clk 0:03:37]}  b6 {[%clk 0:35:00]} 35. Qc4 {[%clk 0:02:55]}  Ng6 {[%clk 0:35:23]} 36. f4 {[%clk 0:01:19]}  Rd4 {[%clk 0:35:10]}
37. Qc6 {[%clk 0:01:14]}  Rd2 {[%clk 0:35:28]} 38. Qc3 {[%clk 0:00:45]}  Rxa2 {[%clk 0:35:43]} 39. Nc2 {[%clk 0:00:45]}  Qa8 {[%clk 0:31:51]}
40. Re1 {[%clk 0:00:54]}  b5 {[%clk 0:30:56]} 41. Nb4 {[%clk 0:17:39]}  Ra3 {[%clk 0:56:14]} 42. Nc2 {[%clk 0:09:47]}  Ra2 {[%clk 0:53:27]}
43. Nb4 {[%clk 0:09:40]}  Ra3 {[%clk 0:53:10]} 44. Nc2 {[%clk 0:09:01]} 1/2-1/2

[Event "2026 European Womens Championship"]
[Site "Batumi, GE"]
[Date "2026.06.04"]
[Round "10"]
[White "Skarbarchuk, Tetyana"]
[Black "Vidic, Teja"]
[Result "1-0"]
[Board "34"]
[TimeControl "5400+30"]
[WhiteFideId "14184494"]
[BlackFideId "14605511"]
[WhiteElo "2236"]
[BlackElo "2123"]
[BlackTitle "WIM"]
[WhiteClock "0:05:50"]
[BlackClock "0:02:49"]
[Variant "Standard"]

1. d4 {[%clk 1:30:22]}  d5 {[%clk 1:30:48]} 2. c4 {[%clk 1:30:45]}  c6 {[%clk 1:31:11]} 3. Nc3 {[%clk 1:30:47]}  Nf6 {[%clk 1:31:35]}
4. Nf3 {[%clk 1:30:55]}  dxc4 {[%clk 1:31:55]} 5. a4 {[%clk 1:31:07]}  Bf5 {[%clk 1:32:20]} 6. Ne5 {[%clk 1:31:12]}  Nbd7 {[%clk 1:32:44]}
7. Nxc4 {[%clk 1:31:35]}  Qc7 {[%clk 1:33:10]} 8. g3 {[%clk 1:31:43]}  e5 {[%clk 1:33:36]} 9. dxe5 {[%clk 1:32:00]}  Nxe5 {[%clk 1:34:00]}
10. Bf4 {[%clk 1:32:20]}  Nfd7 {[%clk 1:34:25]} 11. Bg2 {[%clk 1:32:29]}  g5 {[%clk 1:34:48]} 12. Ne3 {[%clk 1:32:44]}  gxf4 {[%clk 1:35:09]}
13. Nxf5 {[%clk 1:33:09]}  O-O-O {[%clk 1:35:17]} 14. Qc2 {[%clk 1:33:33]}  Nc5 {[%clk 1:35:43]} 15. O-O {[%clk 1:31:36]}  fxg3 {[%clk 1:36:09]}
16. hxg3 {[%clk 1:31:59]}  a5 {[%clk 1:36:34]} 17. Rfd1 {[%clk 1:29:25]}  h5 {[%clk 1:36:57]} 18. Rxd8+ {[%clk 1:16:00]}  Qxd8 {[%clk 1:37:06]}
19. Rd1 {[%clk 1:16:25]}  Qf6 {[%clk 1:37:31]} 20. e3 {[%clk 1:03:33]}  Kc7 {[%clk 1:26:39]} 21. Ne2 {[%clk 0:47:59]}  Ne6 {[%clk 1:08:51]}
22. Nf4 {[%clk 0:34:23]}  Kb6 {[%clk 0:57:54]} 23. Nxe6 {[%clk 0:23:06]}  Qxe6 {[%clk 0:53:05]} 24. Nd4 {[%clk 0:23:30]}  Qc4 {[%clk 0:47:41]}
25. Qf5 {[%clk 0:23:41]}  Ng4 {[%clk 0:32:49]} 26. b3 {[%clk 0:22:46]}  Qc3 {[%clk 0:33:02]} 27. Qxf7 {[%clk 0:21:23]}  Bb4 {[%clk 0:32:41]}
28. Nb5 {[%clk 0:13:47]}  Qc2 {[%clk 0:19:38]} 29. Qc7+ {[%clk 0:13:26]}  Ka6 {[%clk 0:19:27]} 30. Rf1 {[%clk 0:13:30]}  Rf8 {[%clk 0:15:33]}
31. Nd4 {[%clk 0:13:29]}  Qc3 {[%clk 0:14:26]} 32. Nxc6 {[%clk 0:12:18]}  bxc6 {[%clk 0:08:48]} 33. Bxc6 {[%clk 0:12:43]}  Rb8 {[%clk 0:08:56]}
34. Rd1 {[%clk 0:12:19]}  Qxb3 {[%clk 0:02:15]} 35. Bb5+ {[%clk 0:04:36]}  Rxb5 {[%clk 0:02:40]} 36. axb5+ {[%clk 0:05:03]}  Kxb5 {[%clk 0:03:08]}
37. Qb7+ {[%clk 0:05:28]}  Kc5 {[%clk 0:02:15]} 38. Rc1+ {[%clk 0:05:43]}  Kd6 {[%clk 0:02:30]} 39. Qc7+ {[%clk 0:05:46]}  Ke6 {[%clk 0:02:44]}
40. Rc6+ {[%clk 0:05:28]}  Kf5 {[%clk 0:02:49]} 41. Qf4# {[%clk 0:05:50]} 1-0